Cogmind - Beta 17.1 @@@ ROGUE MODE // 2026.09.08 @ 11:22:53 Player: Somberlain Result: Destroyed by G-50 Soldier with Heavy Laser Performance ------------- Evolutions (5) 2500 Regions Visited (12) 2400 Robots Destroyed (219) 1095 Value Destroyed (8945) 8945 Prototype IDs (8) 160 Alien Tech Used (0) 0 Bonus (2857) 2857 TOTAL SCORE: 17957 Bonus ------- High Alert Combat Kills 425 Follower Combat Kills 850 Entered Garrisons 600 Used RIF Installer 1000 Friendly Fire -18 Cogmind --------- Core Integrity 0/1000 Matter 127/300 Energy 71/100 System Corruption 18% Temperature Cool (9) Movement Core (50) Location -5/Garrison Parts ------- > --- POWER (2) -------- (None) > --- PROPULSION (4) --- (None) > --- UTILITY (9) ------ (None) > --- WEAPON (2) ------- (None) > --- INVENTORY (5) ---- Improved Trap Scanner Gatling Laser Remote Datajack Peak State ------------ > --- POWER ------------ Improved Deuterium Engine Improved Fusion Compressor > --- PROPULSION ------- Improved Carbon-fiber Leg Flexi-carbon Leg > --- UTILITY ---------- Improved Trap Scanner Advanced Signal Interpreter Core Analyzer Improved Force Field Hacking Suite System Shield Advanced System Shield Relay Coupler [Grunt] Relay Coupler [Heavy] > --- WEAPON ----------- Tesla Rifle Improved Arc Projector > --- INVENTORY -------- Advanced Heat Sink Gatling Laser Wave Gun Remote Datajack Great Axe [Rating: 76] Favorites ----------- Power Enhanced Nuclear Core Engine Improved Deuterium Engine Power Core Enhanced Nuclear Core Reactor Antimatter Reactor Propulsion Carbon-fiber Leg Treads Medium Treads Leg Carbon-fiber Leg Wheel Wheel Flight Unit Cesium-ion Thruster Utility Hacking Suite Device Improved Sensor Array Storage Large Storage Unit Processor Improved Signal Interpreter Hackware Hacking Suite Protection Improved Light Armor Plating Weapon Shock Rifle Energy Gun Shock Rifle Energy Cannon Heavy Disruptor Cannon Ballistic Gun Enhanced Autogun Ballistic Cannon Mini Assault Cannon Launcher Improved Grenade Launcher Special Weapon Remote Datajack Impact Weapon Heavy Flail Slashing Weapon Katana Build | -11 -10 -9 -8 -7 -7 -7 -7 -7 -6 -6 -5 -5 ------- Run | Yrd Mat Mat Mat Fac Was Fac Gar Fac Fac Gar Fac Gar Slots Evolved 10 | . . 2 2 2 . . . . 2 . 2 . Power 1 | . . . . . . . . . . . 1 . Propulsion 2 | . . . . 1 . . . . . . 1 . Utility 7 | . . 2 2 1 . . . . 2 . . . Weapon . | . . . . . . . . . . . . . Parts Attached 214 | 6 8 23 45 15 5 27 11 4 . 39 28 3 Power 20 | 1 1 2 7 1 2 2 . . . 2 1 1 Engine 10 | 1 1 1 5 . . . . . . 2 . . Core 9 | . . 1 2 1 1 2 . . . . 1 1 Reactor 1 | . . . . . 1 . . . . . . . Propulsion 54 | 2 3 10 8 1 . 10 2 . . 10 7 1 Treads 5 | . . 2 . . . 3 . . . . . . Leg 36 | 2 3 1 2 1 . 7 2 . . 10 7 1 Wheel 8 | . . 2 6 . . . . . . . . . Hover . | . . . . . . . . . . . . . Flight 5 | . . 5 . . . . . . . . . . Utility 74 | 1 3 6 12 9 3 6 3 2 . 19 10 . Device 27 | . . 3 2 4 3 5 2 . . 4 4 . Storage 4 | 1 1 1 . . . . . . . . 1 . Processor 17 | . 2 2 9 2 . . . . . 1 1 . Hackware 25 | . . . 1 3 . 1 1 2 . 13 4 . Protection 1 | . . . . . . . . . . 1 . . Artifact . | . . . . . . . . . . . . . Weapon 66 | 2 1 5 18 4 . 9 6 2 . 8 10 1 Energy Gun 33 | 2 . 2 9 2 . 5 3 . . 4 5 1 Energy Cannon 4 | . . . 1 . . . . . . 1 2 . Ballistic Gun 16 | . . . 3 2 . 2 2 2 . 3 2 . Ballistic Cannon 1 | . . . 1 . . . . . . . . . Launcher 3 | . . . 3 . . . . . . . . . Special Weapon 3 | . 1 . . . . 1 1 . . . . . Impact Weapon 1 | . . . 1 . . . . . . . . . Slashing Weapon 5 | . . 3 . . . 1 . . . . 1 . Piercing Weapon . | . . . . . . . . . . . . . Special Melee Weapon . | . . . . . . . . . . . . . Unidentified Prototypes 6 | . . . 5 . . 1 . . . . . . Corrupted Parts 4 | . . . . . . . . . . 1 2 1 System Corruption 18 | . . . . . . . . . . 3 13 2 Parts Lost 86 | . . 6 12 1 1 3 13 1 . 20 17 12 Power 9 | . . . 3 . . . 1 . . 2 2 1 Propulsion 28 | . . 3 4 . 1 . 3 1 . 6 7 3 Utility 25 | . . 1 2 1 . 2 2 . . 9 4 4 Weapon 24 | . . 2 3 . . 1 7 . . 3 4 4 Highest Loss Streak 12 | . . 2 3 1 1 1 12 1 . 5 7 9 To Critical Strikes . | . . . . . . . . . . . . . Average Backups 10 | . 2 5 14 14 11 11 14 14 14 7 5 6 Power . | . . . 1 1 . 1 . 1 1 . . . Propulsion . | . . . 1 . . 1 . . . . . . Utility 4 | . 1 2 5 5 4 2 7 7 7 3 2 1 Weapon 4 | . . 1 4 7 6 6 5 5 6 2 1 3 Tool/Special . | . . . . . . . . . . . . . Unused Backups 36 | . . 3 14 1 6 5 3 . . 3 1 . Power 4 | . . 1 2 . . 1 . . . . . . Propulsion 4 | . . . 3 . . . 1 . . . . . Utility 16 | . . 2 5 1 4 1 2 . . 1 . . Weapon 11 | . . . 3 . 2 3 . . . 2 1 . Tool/Special 1 | . . . 1 . . . . . . . . . Average Slot Usage (%) 93 | . 95 85 96 99 90 97 96 93 80 88 83 51 Engine 3 | . 14 3 6 . . . . . . 4 3 . Core 4 | . . 7 2 7 4 7 6 7 6 1 4 . Treads 2 | . . 3 . . . 9 . . . . . . Leg 14 | . 28 3 10 22 18 11 22 16 13 14 13 10 Wheel 1 | . . 6 4 . . . . . . . . . Device 7 | . . 9 1 6 5 6 19 17 13 9 9 5 Storage 5 | . 14 6 9 7 4 5 7 7 6 1 1 5 Processor 14 | . 10 15 34 13 7 7 7 7 6 7 11 10 Hackware 21 | . . . 8 24 30 30 16 20 20 35 27 10 Energy Gun 8 | . 24 11 14 6 . 8 7 . . 4 3 . Ballistic Gun 3 | . . . 1 7 15 5 6 6 6 3 . 1 Peak Build Rating 76 | 6 7 19 39 44 51 49 46 43 41 68 76 53 Average Rating 41 | 4 6 15 33 42 41 43 41 41 41 54 68 38 On Entrance 33 | . 6 7 19 39 41 34 46 43 41 41 68 47 Avg Prop Armor Cover (%) 10 | . . 3 . 7 . 12 . . . . 7 7 Naked Turns 2 | . . . . . . . . . . . . 2 Heaviest Build 53 | 14 18 32 37 35 43 36 42 38 37 42 46 53 Greatest Support 84 | 20 20 40 32 43 43 84 48 40 30 51 56 30 Greatest Overweight (x) 11 | . . 3 11 1 2 2 1 1 1 5 8 2 Average Overweight (x) . | . . . 1 . . . . . 1 . . . Largest Inventory Capacity 15 | 8 10 15 15 15 15 15 15 15 15 15 15 15 Average Capacity 12 | 6 8 10 15 15 11 13 15 15 15 7 7 14 Most Carried 15 | . 7 10 15 15 15 15 15 15 14 15 9 9 Average Carried 10 | . 2 5 14 14 11 11 14 14 14 7 5 6 Final Capacity 15 | 8 10 15 15 15 5 15 15 15 15 5 15 5 Final Carried 15 | . 6 10 15 15 5 15 15 14 14 5 8 3 Class Distribution -------------------- 36% | Hacker-Mutant 21% | Mutant 14% | Scavenger-Mutant 11% | Bothacker-Mutant 6% | Bothacker-Skirmisher 3% | Scavenger-Skirmisher Dominant Class ---------------- Mutant | -10/Materials Scavenger-Mutant | -9/Materials Mutant | -8/Materials Hacker-Mutant | -7/Factory Hacker-Mutant | -7/Waste Hacker-Mutant | -7/Factory Scavenger-Skirmisher | -7/Garrison Bothacker-Skirmisher | -7/Factory Bothacker-Skirmisher | -6/Factory Bothacker-Mutant | -6/Garrison Bothacker-Mutant | -5/Factory Scavenger-Mutant | -5/Garrison Resources | -11 -10 -9 -8 -7 -7 -7 -7 -7 -6 -6 -5 -5 ----------- Run | Yrd Mat Mat Mat Fac Was Fac Gar Fac Fac Gar Fac Gar Matter Collected 5364 | 222 128 250 640 512 . 1161 408 105 . 1198 649 91 Remotely . | . . . . . . . . . . . . . Salvage Created 9130 | . 558 1041 2042 699 . 1803 519 130 . 1078 1170 90 Parts 469 | . 23 78 116 43 . 89 21 5 . 39 52 3 Haulers Intercepted 15 | . 2 3 4 3 . 3 . . . . . . Recyclers Shooed 3 | . . . . . . 1 . . . . 2 . Parts Field Recycled . | . . . . . . . . . . . . . Retrieved Matter . | . . . . . . . . . . . . . Parts Self-Destructed . | . . . . . . . . . . . . . Prevented . | . . . . . . . . . . . . . Parts Restored 1 | . . . . 1 . . . . . . . . Broken 1 | . . . . 1 . . . . . . . . Kills | -11 -10 -9 -8 -7 -7 -7 -7 -7 -6 -6 -5 -5 ------- Run | Yrd Mat Mat Mat Fac Was Fac Gar Fac Fac Gar Fac Gar Combat Hostiles Destroyed 159 | . 10 23 36 11 . 23 12 5 . 27 11 1 Melee 19 | . . 18 . . . . . . . . 1 . Guns 120 | . 10 5 28 10 . 18 12 5 . 27 5 . Cannons 4 | . . . 3 . . . . . . . . 1 AOE 9 | . . . 5 . . 2 . . . . 2 . Classes Destroyed 13 | . 5 2 5 1 . . . . . . . . Worker 9 | . 2 2 2 1 . 2 . . . . . . Builder 6 | . . 1 2 1 . 1 . . . . 1 . Hauler 15 | . 2 3 4 3 . 3 . . . . . . Recycler 8 | . . . 3 . . 3 . . . . 2 . Mechanic 1 | . . . 1 . . . . . . . . . Operator 4 | . . . 2 . . 2 . . . . . . Watcher 15 | . 2 4 5 1 . 2 . . . . 1 . Swarmer 51 | . 3 10 14 2 . 3 4 4 . 11 . . Grunt 62 | . 7 7 13 3 . 8 5 1 . 11 7 . Brawler 4 | . . . 1 . . . . . . 3 . . Sentry 26 | . . 6 7 2 . 5 3 . . . 2 1 Hunter 5 | . . . 1 . . 2 . . . . 2 . Programmer 13 | . . . . 4 . 5 . . . 2 2 . Best Kill Streak 10 | . 5 7 10 3 . 6 6 2 . 4 4 1 Combat Bots Only 7 | . 3 7 7 2 . 4 6 2 . 4 4 1 Max Kills in Single Turn 2 | . 1 1 2 1 . 2 2 1 . 2 2 1 Gunslinging 1 | . . . 1 . . . 1 . . 1 . . Exploded 2 | . . . 2 . . 1 . . . . 1 . Melee 1 | . . 1 . . . . . . . . 1 . Uniques/NPCs Destroyed . | . . . . . . . . . . . . . Combat | -11 -10 -9 -8 -7 -7 -7 -7 -7 -6 -6 -5 -5 -------- Run | Yrd Mat Mat Mat Fac Was Fac Gar Fac Fac Gar Fac Gar Hostile Shots Fired 1416 | . 63 91 214 116 1 213 245 28 . 184 176 85 Missed 493 | . 22 23 63 48 . 88 85 17 . 68 57 22 Hits 923 | . 41 68 151 68 1 125 160 11 . 116 119 63 Melee 2 | . . . 1 . 1 . . . . . . . Projectile 921 | . 41 68 150 68 . 125 160 11 . 116 119 63 AOE 1 | . . . . . . . . . . . 1 . Critical Strikes 29 | . . 3 4 1 . 4 4 . . 3 9 1 Part Disruptions 3 | . . . . . . 1 . . . 1 1 . Damage Taken 12438 | . 460 798 1798 756 45 1344 1755 169 . 1719 2120 1474 Core 2847 | . 73 317 400 113 . 250 269 53 . 364 381 627 Absorbed by Shields 184 | . . . . . . . . . . 63 121 . Regen/Repaired (Parts) 404 | . 59 . 2 231 . 112 . . . . . . Core Remaining (%) 46 | 100 70 20 27 . . . . 2 . 57 . . Volleys Fired 631 | . 55 28 111 51 2 99 39 16 . 131 80 19 Largest 2 | . 2 2 2 2 2 2 2 2 . 2 2 2 Hottest 196 | . 100 112 125 110 50 100 160 50 . 160 196 196 Shots Fired 1108 | . 109 55 210 98 4 193 72 22 . 206 121 18 Gun 1001 | . 108 55 169 98 4 190 70 17 . 181 103 6 Cannon 61 | . . . 37 . . . . . . 2 10 12 Launcher 4 | . . . 4 . . . . . . . . . Special 42 | . 1 . . . . 3 2 5 . 23 8 . Kinetic 338 | . . . 26 57 4 77 29 17 . 75 48 5 Thermal 396 | . 109 55 85 . . . 13 . . 97 24 13 Explosive 4 | . . . 4 . . . . . . . . . Electromagnetic 329 | . . . 95 41 . 113 28 . . 11 41 . Robot Hit Streak 20 | . 8 7 19 16 2 20 16 5 . 18 6 9 Robot Miss Streak 8 | . 3 2 5 6 1 5 4 5 . 8 6 1 Penetration Max 1 | . . . . . . . . . . 1 1 . Secondary Targets 19 | . 3 . 1 1 . 3 3 . . 7 1 . Max Gunslinging Chain 1 | . 1 . 1 1 . 1 1 . . 1 1 . Shots Hit Robots 801 | . 74 88 149 77 3 132 47 14 . 128 78 11 Core Hits 453 | . 26 39 102 37 1 64 36 11 . 83 52 2 Critical Kills 6 | . . . . 1 . . . . . . 5 . Critical Parts Destroyed 11 | . . . . 2 . . . 1 . . 8 . Critical Strikes 44 | . 9 9 5 3 . 1 2 1 . 1 13 . Burn 14 | . 9 2 2 . . . . . . 1 . . Destroy 16 | . . . . 2 . . . 1 . . 13 . Corrupt 6 | . . . 3 . . 1 2 . . . . . Smash 1 | . . . . 1 . . . . . . . . Sever 7 | . . 7 . . . . . . . . . . Melee Attacks 92 | . . 67 5 11 . 6 1 . . . 2 . Impact 16 | . . . 5 11 . . . . . . . . Slashing 76 | . . 67 . . . 6 1 . . . 2 . Piercing . | . . . . . . . . . . . . . Sneak Attacks 8 | . . 5 . 2 . 1 . . . . . . Combat Hostiles 1 | . . 1 . . . . . . . . . . Follow-up Attacks 4 | . . 4 . . . . . . . . . . Damage Inflicted 16973 | . 1009 2524 3395 1600 46 2591 1210 214 . 2705 1445 234 Guns 12298 | . 1009 607 2186 1304 46 2341 929 214 . 2705 925 32 Cannons 926 | . . . 558 . . . . . . . 166 202 Explosions 1487 | . . . 651 51 . 186 281 . . . 318 . Melee 2240 | . . 1895 . 245 . 64 . . . . 36 . Ramming 22 | . . 22 . . . . . . . . . . Kinetic 4006 | . . . 381 847 46 852 396 214 . 973 265 32 Thermal 6208 | . 1009 607 1438 51 . 186 523 . . 1609 583 202 Explosive 546 | . . . 366 . . . . . . . 180 . Electromagnetic 3951 | . . . 1210 457 . 1489 291 . . 123 381 . Impact 245 | . . . . 245 . . . . . . . . Slashing 1995 | . . 1895 . . . 64 . . . . 36 . Piercing . | . . . . . . . . . . . . . Highest Corruption 18 | . . . 1 . . 16 16 16 . 4 16 18 Average Corruption 9 | . . . 1 . . 11 16 16 . 3 11 16 Corruption Purged . | . . . . . . . . . . . . . Corruption Blocked . | . . . . . . . . . . . . . Effects 254 | . . . 10 . . 102 41 25 . 45 20 11 Message Errors 65 | . . . 4 . . 26 10 5 . 14 5 1 Matter Fused 48 | . . . 2 . . 22 6 7 . 8 2 1 Heat Flow Errors 42 | . . . 2 . . 17 5 5 . 8 4 1 Energy Discharges 31 | . . . . . . 8 8 4 . 5 4 2 Parts Rejected 3 | . . . . . . 1 . . . 2 . . Parts Fused 3 | . . . . . . 1 1 . . . 1 . Data Loss (minor) 21 | . . . 1 . . 8 3 2 . 4 1 2 Data Loss (major) 12 | . . . 1 . . 8 3 . . . . . Misfires 11 | . . . . . . 4 3 1 . 2 1 . Alerts 5 | . . . . . . 2 . 1 . 1 . 1 Misdirections 2 | . . . . . . . 1 . . . . 1 Weapon Failures 11 | . . . . . . 5 1 . . 1 2 2 Overload Shots . | . . . . . . . . . . . . . Overflow Damage 321 | . . 71 24 148 . 34 17 . . . 27 . Projectiles 37 | . . . 10 . . . . . . . 27 . Explosions 31 | . . . 14 . . . 17 . . . . . Melee 253 | . . 71 . 148 . 34 . . . . . . Knockbacks . | . . . . . . . . . . . . . Impact . | . . . . . . . . . . . . . Kinetic . | . . . . . . . . . . . . . Secondary . | . . . . . . . . . . . . . Self-Inflicted Damage 67 | . . . . . . . . . . . 67 . Shots 1 | . . . . . . . . . . . 1 . Rammed . | . . . . . . . . . . . . . Targets Rammed 9 | . . 9 . . . . . . . . . . Kicked 9 | . . 9 . . . . . . . . . . Crushed . | . . . . . . . . . . . . . Highest Temperature 363 | . 363 207 255 240 . 259 259 251 . 235 339 174 Average Temperature 77 | . 125 35 62 90 . 63 90 107 . 54 80 45 Received Heat Transfer 3900 | . 201 327 585 195 . 336 774 18 . 415 689 360 Effects 6 | . 3 1 1 . . . . . . . 1 . Shutdowns 1 | . 1 . . . . . . . . . . . Energy Bleed 4 | . 1 1 1 . . . . . . . 1 . Damage (minor) 1 | . 1 . . . . . . . . . . . Siege Activations . | . . . . . . . . . . . . . Martial Activations . | . . . . . . . . . . . . . Shielding Activations . | . . . . . . . . . . . . . Robots Disrupted 2 | . . . . . . 1 . . . . 1 . Combat Hostiles 1 | . . . . . . 1 . . . . . . Robots Corrupted 9 | . . . . 3 . 4 . . . . 2 . Combat Hostiles 6 | . . . . 1 . 3 . . . . 2 . Parts Fried 25 | . . . 4 5 . 12 . . . . 4 . Impact Corruptions 3 | . . . . 3 . . . . . . . . Robots Melted 2 | . 1 . . . . . . . . . 1 . Combat Hostiles 1 | . . . . . . . . . . . 1 . Parts Melted 29 | . 8 3 2 . . . 3 . . 9 3 1 Heat Transferred 13656 | . 3552 1702 2575 50 . 150 850 . . 3502 1000 275 Parts Sabotaged . | . . . . . . . . . . . . . Parts Stolen . | . . . . . . . . . . . . . Parts Stripped . | . . . . . . . . . . . . . Power Chain Reactions 12 | . . . 4 1 . 4 2 . . . 1 . Alert | -11 -10 -9 -8 -7 -7 -7 -7 -7 -6 -6 -5 -5 ------- Run | Yrd Mat Mat Mat Fac Was Fac Gar Fac Fac Gar Fac Gar Maximum Alert Level 5 | . . 1 1 . . 1 3 2 . 5 3 1 Low Security (%) 48 | 100 100 77 48 100 100 60 . . 100 16 . . Level 1 29 | . . 22 51 . . 39 36 96 . 8 26 100 Level 2 7 | . . . . . . . 15 3 . 10 53 . Level 3 9 | . . . . . . . 48 . . 32 20 . Level 4 4 | . . . . . . . . . . 28 . . Level 5 . | . . . . . . . . . . 4 . . High Security . | . . . . . . . . . . . . . Max Security . | . . . . . . . . . . . . . Peak Influence 1634 | . 133 281 258 149 50 361 780 409 107 1634 857 350 Initial 857 | . . . 113 91 50 . 249 409 107 46 857 350 Average 304 | . 51 140 164 27 18 145 553 309 90 855 527 323 Influence Increases 6995 | . 301 866 1095 379 . 902 721 164 . 1968 539 60 Destroy 0b10 Robot/C 3660 | . 200 460 720 220 . 460 420 120 . 740 300 20 Destroy 0b10 Robot/NC 305 | . 30 50 95 30 . 65 . 5 . 5 25 . Destroy Leader 724 | . 38 124 188 68 . 160 30 22 . 20 74 . Allied During Kill 89 | . . . . . . . 45 2 . 24 18 . Successful Hack 99 | . 17 5 15 19 . 31 . . . 12 . . Disable Machine 225 | . 15 15 . 15 . 120 . . . . 60 . Anti-Garrison Action 1100 | . . . . . . . 150 . . 950 . . Destroy Structure 253 | . 1 2 47 12 . 21 31 . . 67 62 10 Partial Spotted 60 | . . 60 . . . . . . . . . . Lose Combat Pursuer 480 | . . 150 30 15 . 45 45 15 . 150 . 30 Influence Decreases 6705 | . 301 597 1163 435 145 546 297 723 154 401 1673 270 Entered New Map 1901 | . . . 156 110 95 . 107 371 114 21 777 150 Time Decay 3103 | . 301 387 666 315 50 496 . 302 40 . 546 . Lost Part 845 | . . 60 115 10 . 30 130 10 . 200 170 120 Lost Ally 480 | . . . . . . 20 60 40 . 180 180 . Purge Threat 376 | . . 150 226 . . . . . . . . . Squads Dispatched 35 | . 1 . 4 10 . 14 . 2 . . 4 . Investigation 3 | . 1 . 1 1 . . . . . . . . Extermination 11 | . . . . 5 . 5 . . . . 1 . Reinforcement 13 | . . . 3 4 . 5 . 1 . . . . Assault 1 | . . . . . . . . . . . 1 . Garrison 7 | . . . . . . 4 . 1 . . 2 . Intercept . | . . . . . . . . . . . . . Searches Triggered . | . . . . . . . . . . . . . Construction Impeded 2 | . . . 1 1 . . . . . . . . Haulers Reinforced 4 | . . . . 2 . 2 . . . . . . Active Scanning Responses . | . . . . . . . . . . . . . Cargo Convoy Interrupts . | . . . . . . . . . . . . . Stealth | -11 -10 -9 -8 -7 -7 -7 -7 -7 -6 -6 -5 -5 --------- Run | Yrd Mat Mat Mat Fac Was Fac Gar Fac Fac Gar Fac Gar Distress Signals 18 | . 2 3 4 1 . 4 . 1 . 1 2 . Communications Jammed . | . . . . . . . . . . . . . Distress Signals . | . . . . . . . . . . . . . Times Spotted 286 | . 17 40 52 18 5 40 24 11 . 47 26 6 Peak Tracking Total 7 | . 4 6 6 3 4 3 7 3 . 7 5 4 Tactical Retreats 25 | . . 9 2 1 . 2 3 1 . 5 . 2 ECM-based Alert Blocks 1 | . . . . . . . 1 . . . . . Traps | -11 -10 -9 -8 -7 -7 -7 -7 -7 -6 -6 -5 -5 ------- Run | Yrd Mat Mat Mat Fac Was Fac Gar Fac Fac Gar Fac Gar Traps Triggered 15 | . . . 2 1 . 8 . 1 . 3 . . Indirectly . | . . . . . . . . . . . . . Trap Hack Attempts . | . . . . . . . . . . . . . Triggered . | . . . . . . . . . . . . . Disarmed 1 | . . 1 . . . . . . . . . . Reprogrammed . | . . . . . . . . . . . . . Reused . | . . . . . . . . . . . . . Traps Extracted . | . . . . . . . . . . . . . Installed . | . . . . . . . . . . . . . Triggered . | . . . . . . . . . . . . . Machines | -11 -10 -9 -8 -7 -7 -7 -7 -7 -6 -6 -5 -5 ---------- Run | Yrd Mat Mat Mat Fac Was Fac Gar Fac Fac Gar Fac Gar Machines Disabled 27 | . 1 1 . 1 . 8 3 . . 9 4 . Max in Single Turn 2 | . 1 1 . 1 . 2 1 . . 1 2 . Garrison Relay 10 | . . . . . . . 3 . . 7 . . Machines Repaired . | . . . . . . . . . . . . . Machines Dismantled . | . . . . . . . . . . . . . Machines Sabotaged . | . . . . . . . . . . . . . Overloaded Fab Kills . | . . . . . . . . . . . . . Hacking | -11 -10 -9 -8 -7 -7 -7 -7 -7 -6 -6 -5 -5 --------- Run | Yrd Mat Mat Mat Fac Was Fac Gar Fac Fac Gar Fac Gar Machines Accessed 54 | . 9 5 9 11 . 13 2 2 1 1 1 . Terminals 35 | . 6 4 6 7 . 7 2 2 . 1 . . Fabricators 1 | . . . . . . 1 . . . . . . Repair Stations 7 | . 1 . 1 2 . 3 . . . . . . Recycling Units 3 | . 2 . . 1 . . . . . . . . Scanalyzers 5 | . . 1 2 1 . 1 . . . . . . Garrison Access 3 | . . . . . . 1 . . 1 . 1 . Total Hacks 132 | . 23 14 21 29 . 33 6 2 1 2 1 . Successful 65 | . 11 5 11 18 . 16 1 . 1 1 1 . Failed 66 | . 12 9 9 11 . 17 5 2 . 1 . . Catastrophic 12 | . 3 2 2 2 . 2 . 1 . . . . Database Lockouts 1 | . . . 1 . . . . . . . . . Manual 43 | . 12 3 11 8 . 7 . 2 . . . . Terminals 82 | . 12 13 15 16 . 16 6 2 . 2 . . Fabricators 1 | . . . . . . 1 . . . . . . Repair Stations 27 | . 6 . 2 9 . 10 . . . . . . Recycling Units 6 | . 5 . . 1 . . . . . . . . Scanalyzers 12 | . . 1 4 3 . 4 . . . . . . Garrison Access 4 | . . . . . . 2 . . 1 . 1 . Terminal Hacks 32 | . 6 4 6 8 . 6 1 . . 1 . . Robot Analysis 6 | . 3 . . 3 . . . . . . . . Prototype ID Bank 1 | . 1 . . . . . . . . . . . Open Door 1 | . . . . . . . 1 . . . . . Open DSF 2 | . . . . . . 2 . . . . . . Emergency Access Points 1 | . . . . . . . . . . 1 . . Repair Station Index 1 | . . . 1 . . . . . . . . . Unreport Threat 3 | . . 1 2 . . . . . . . . . Locate Traps 1 | . . . . 1 . . . . . . . . Disarm Traps 2 | . . 2 . . . . . . . . . . Dispatch Records 1 | . . . . . . 1 . . . . . . Security Status 1 | . . . 1 . . . . . . . . . Patrol Status 1 | . . . 1 . . . . . . . . . Transport Status 1 | . . . . 1 . . . . . . . . Recall Investigation 1 | . 1 . . . . . . . . . . . Recall Reinforcements 1 | . . . . . . 1 . . . . . . Hauler Manifests 3 | . 1 . . 1 . 1 . . . . . . Registered Components 3 | . . 1 . 1 . 1 . . . . . . Registered Prototypes 1 | . . . . 1 . . . . . . . . Zone Layout 1 | . . . 1 . . . . . . . . . Fabricator Hacks 1 | . . . . . . 1 . . . . . . Network Status 1 | . . . . . . 1 . . . . . . Repair Station Hacks 17 | . 3 . 2 7 . 5 . . . . . . Scan Component 10 | . 2 . 1 4 . 3 . . . . . . Repair 7 | . 1 . 1 3 . 2 . . . . . . Recycling Unit Hacks 3 | . 2 . . 1 . . . . . . . . Retrieve Components 3 | . 2 . . 1 . . . . . . . . Scanalyzer 9 | . . 1 3 2 . 3 . . . . . . Insert Component 1 | . . . 1 . . . . . . . . . Analyze 1 | . . . 1 . . . . . . . . . Retrieve Study 7 | . . 1 1 2 . 3 . . . . . . Garrison Access Hacks 3 | . . . . . . 1 . . 1 . 1 . Unlock Access 3 | . . . . . . 1 . . 1 . 1 . Unauthorized Hacks . | . . . . . . . . . . . . . Terminals . | . . . . . . . . . . . . . Fabricators . | . . . . . . . . . . . . . Repair Stations . | . . . . . . . . . . . . . Recycling Units . | . . . . . . . . . . . . . Scanalyzers . | . . . . . . . . . . . . . Garrison Access . | . . . . . . . . . . . . . Data Cores Recovered 1 | . . . . . . 1 . . . . . . Used 1 | . . . . . . 1 . . . . . . Hacking Detections 40 | . 8 3 7 8 . 9 1 2 . 1 1 . Full Trace Events 3 | . 2 . . 1 . . . . . . . . Feedback Events . | . . . . . . . . . . . . . Feedback Blocked . | . . . . . . . . . . . . . Robot Schematics Acquired . | . . . . . . . . . . . . . Robots Built . | . . . . . . . . . . . . . Authchips . | . . . . . . . . . . . . . Time . | . . . . . . . . . . . . . Total Robot Build Rating . | . . . . . . . . . . . . . Part Schematics Acquired 1 | . . . 1 . . . . . . . . . Parts Built . | . . . . . . . . . . . . . Authchips . | . . . . . . . . . . . . . Time . | . . . . . . . . . . . . . Total Part Build Rating . | . . . . . . . . . . . . . Part Studies Acquired 6 | . . . 1 2 . 3 . . . . . . Parts Repaired 7 | . 1 . 1 3 . 2 . . . . . . Time 236 | . 26 . 53 76 . 81 . . . . . . Parts Recycled . | . . . . . . . . . . . . . Recycled Matter . | . . . . . . . . . . . . . Retrieved Matter . | . . . . . . . . . . . . . Retrieved Components 10 | . . . . 10 . . . . . . . . Parts Scanalyzed 1 | . . . 1 . . . . . . . . . Part Schematics Acquired 1 | . . . 1 . . . . . . . . . Parts Damaged . | . . . . . . . . . . . . . Bothacking | -11 -10 -9 -8 -7 -7 -7 -7 -7 -6 -6 -5 -5 ------------ Run | Yrd Mat Mat Mat Fac Was Fac Gar Fac Fac Gar Fac Gar Used RIF Installer 2 | . . . . . . . 1 . . 1 . . Patrol Navigation 1 | . . . . . . . . . . 1 . . Robots Hacked 17 | . . . . . . . 2 3 . 7 5 . Non-combat . | . . . . . . . . . . . . . Combat 17 | . . . . . . . 2 3 . 7 5 . Robot Hacks Applied 17 | . . . . . . . 2 3 . 7 5 . formatsys_high 17 | . . . . . . . 2 3 . 7 5 . Relay Couplers Released 43 | . . . . . . . 12 . . 31 . . Machine Destruction 43 | . . . . . . . 12 . . 31 . . Attached 18 | . . . . . . . 1 2 . 12 3 . Fabnet Peak Effective % . | . . . . . . . . . . . . . Robots Rewired 8 | . . . . . . 1 . . . 7 . . Allies Hacked 1 | . . . . . . . . . . . 1 . Hacks Repelled . | . . . . . . . . . . . . . Allies | -11 -10 -9 -8 -7 -7 -7 -7 -7 -6 -6 -5 -5 -------- Run | Yrd Mat Mat Mat Fac Was Fac Gar Fac Fac Gar Fac Gar Total Allies 28 | . . . . . . 1 5 3 . 14 5 . Largest Group 6 | . . . . . . 1 2 3 1 6 6 . Highest-Rated Group 182 | . . . . . . 16 157 64 16 182 182 . Highest-Rated Ally 95 | . . . . . . 16 95 32 16 85 41 . Total Orders 3 | . . . . . . . . 1 . . 2 . STAY 2 | . . . . . . . . 1 . . 1 . AID 1 | . . . . . . . . . . . 1 . Ally Attacks 138 | . . . . . . 2 30 6 . 44 56 . Total Damage 3415 | . . . . . . 29 899 90 . 1252 1145 . Kills 27 | . . . . . . . 9 2 . 11 5 . Allies Corrupted 3 | . . . . . . . . . . . 3 . Allies Melted . | . . . . . . . . . . . . . Intel | -11 -10 -9 -8 -7 -7 -7 -7 -7 -6 -6 -5 -5 ------- Run | Yrd Mat Mat Mat Fac Was Fac Gar Fac Fac Gar Fac Gar Active Infowar (turns) 8820 | . 317 453 . 1896 54 2871 1015 663 84 723 744 . Sensors 5352 | . . 311 . 1896 . 1691 50 663 84 657 . . Terrain 142 | . . 142 . . . . . . . . . . Traps 4818 | . . . . . 53 1539 1012 663 84 723 744 . T.N.C. 317 | . 317 . . . . . . . . . . . ECM 33 | . . . . . 1 . 32 . . . . . Robot Analysis Total 6 | . 3 . . 3 . . . . . . . . Derelict Logs Recovered . | . . . . . . . . . . . . . Drone Launches . | . . . . . . . . . . . . . Drone Recoveries . | . . . . . . . . . . . . . Exploration | -11 -10 -9 -8 -7 -7 -7 -7 -7 -6 -6 -5 -5 ------------- Run | Yrd Mat Mat Mat Fac Was Fac Gar Fac Fac Gar Fac Gar Turns Passed 17048 | 49 814 1030 3096 2389 158 3342 1015 663 84 2670 1560 178 Spaces Moved 10059 | 36 493 852 1685 1493 122 2030 554 309 43 1533 848 61 Core 17 | 4 . . 2 . . . . . . 1 7 3 Treads 737 | . . 99 . . . 638 . . . . . . Legs 7809 | 32 493 85 855 1493 122 1392 554 309 43 1532 841 58 Wheels 1029 | . . 201 828 . . . . . . . . . Hover . | . . . . . . . . . . . . . Flight 467 | . . 467 . . . . . . . . . . Fastest Speed 32 | 50 120 32 95 110 105 105 110 123 195 105 105 50 Average Speed 127 | 112 120 72 152 116 109 124 130 173 195 131 139 154 Slowest Speed 600 | 120 120 240 600 190 245 245 200 195 195 300 450 245 Overloaded Moves . | . . . . . . . . . . . . . Propulsion Burnouts . | . . . . . . . . . . . . . Robots Hopped . | . . . . . . . . . . . . . Potential Cave-ins . | . . . . . . . . . . . . . Cave-ins Triggered . | . . . . . . . . . . . . . Exploration Rate (%) 44 | 3 71 69 90 36 85 42 53 13 2 89 10 11 Regions Visited 12 Branch Regions . Pre-discovered Areas . | . . . . . . . . . . . . . Known Exits Taken 7 | . 1 1 1 . . 1 . 1 1 . 1 . Unknown Exits Taken 1 | 1 . . . . . . . . . . . . Scrap Searched . | . . . . . . . . . . . . . Spaces Dug 16 | . . . 5 6 . 5 . . . . . . Terrain Destroyed 126 | . . . 51 12 . 18 5 . . 5 35 . Melee 16 | . . . 5 6 . 5 . . . . . . Projectile 11 | . . . 3 . . . . . . 5 3 . AOE 96 | . . . 43 6 . 13 5 . . . 29 . Terrain Rammed . | . . . . . . . . . . . . . Walls Destroyed . | . . . . . . . . . . . . . Machines Disabled . | . . . . . . . . . . . . . Actions | -11 -10 -9 -8 -7 -7 -7 -7 -7 -6 -6 -5 -5 --------- Run | Yrd Mat Mat Mat Fac Was Fac Gar Fac Fac Gar Fac Gar Total 13028 | 41 602 1118 2009 2030 146 2664 768 415 43 1973 1095 124 Wait 1602 | . 36 113 81 414 6 409 132 77 . 194 105 35 Move 10051 | 35 492 851 1684 1493 121 2030 553 308 43 1532 848 61 Hop . | . . . . . . . . . . . . . Pick Up 149 | . 5 15 36 13 5 30 13 2 . 17 13 . Fast Attach 95 | 6 3 5 12 8 1 14 3 . . 28 14 1 Attach 69 | . . 7 12 6 3 7 11 . . 8 9 6 Detach 35 | . 1 3 7 4 1 4 1 . . 8 5 1 Swap 171 | . 6 16 29 18 2 45 12 5 . 23 14 1 Drop 117 | . 4 14 32 12 5 20 3 2 . 20 5 . Fire 631 | . 55 28 111 51 2 99 39 16 . 131 80 19 Melee 82 | . . 57 5 11 . 6 1 . . . 2 . Ram . | . . . . . . . . . . . . . Kick 9 | . . 9 . . . . . . . . . . Crush . | . . . . . . . . . . . . . Escape Stasis 12 | . . . . . . . . 5 . 7 . . Rewire 5 | . . . . . . . . . . 5 . . Trap . | . . . . . . . . . . . . . Miscellaneous . | . . . . . . . . . . . . . Route ------- -11/Scrapyard -10/Materials (discovered 3 exits: *Mat x2 / *Min) -9/Materials (discovered 2 exits: *Mat / *Min) -8/Materials (discovered 2 exits: *Fac x2) -7/Factory (discovered 4 exits: *Fac x2 / *Low x2) -7/Waste -7/Factory (discovered 4 exits: *Fac x2 / *Low / Gar) -7/Garrison (discovered 2 exits: *Fac x2) -7/Factory -6/Factory -6/Garrison (discovered 3 exits: *Fac x3) -5/Factory -5/Garrison History --------- Turn | Location | Event 5 | -11/Scrapyard | Discovered new exit (range 15) 50 | -11/Scrapyard | Entered Materials 274 | -10/Materials | Discovered new exit (range 16) 300 | -10/Materials | Build established: Mutant 358 | -10/Materials | Repaired Med. Laser 372 | -10/Materials | Discovered new exit (range 15) 653 | -10/Materials | Identified exit to Mines 831 | -10/Materials | Discovered new exit (range 15) 853 | -10/Materials | Identified exit to Materials 864 | -10/Materials | Entered another Materials area 864 | -9/Materials | Evolved 2 slots: Utility x2 1165 | -9/Materials | Destroyed 7 combat bots 1210 | -9/Materials | Discovered new exit (range 15) 1260 | -9/Materials | Identified exit to Mines 1393 | -9/Materials | Core integrity fell below 50% 1711 | -9/Materials | Build established: Scavenger-Mutant 1879 | -9/Materials | Discovered new exit (range 12) 1893 | -9/Materials | Identified exit to Materials 1894 | -9/Materials | Entered another Materials area 1894 | -8/Materials | Evolved 2 slots: Utility x2 2142 | -8/Materials | Lost 3 parts (2p1n) 2143 | -8/Materials | Destroyed 7 combat bots 2250 | -8/Materials | Lost 3 parts (1n2w) 2460 | -8/Materials | Core integrity fell below 50% 2606 | -8/Materials | Central database locked down 2773 | -8/Materials | Discovered new exit (range 4) 2779 | -8/Materials | Identified exit to Factory 2803 | -8/Materials | Build established: Mutant 3815 | -8/Materials | Discovered exit to Factory (range 11) 4963 | -8/Materials | Repaired Corrupted Hacking Suite 4990 | -8/Materials | Entered Factory 4990 | -7/Factory | Evolved 2 slots: Propulsion x1, Utility x1 5291 | -7/Factory | Build established: Hacker-Mutant 6141 | -7/Factory | Discovered new exit (range 7) 6148 | -7/Factory | Identified exit to Factory 6191 | -7/Factory | Repaired Carbon-fiber Leg 6281 | -7/Factory | Repaired Shock Rifle+ 6764 | -7/Factory | Discovered new exit (range 15) 6780 | -7/Factory | Identified exit to Lower Caves 6833 | -7/Factory | Repaired Carbon-fiber Leg+ 6942 | -7/Factory | Discovered exit to Lower Caves (range 11) 7203 | -7/Factory | Discovered exit to Factory (range 3) 7379 | -7/Factory | Sucked down chute 7379 | -7/Factory | Entered Waste 7396 | -7/Waste | Spotted C-40 Crusher 7409 | -7/Waste | Found Heavy Servo Lattice 7466 | -7/Waste | Spotted C-40 Crusher 7480 | -7/Waste | Crushed by Compactor (1 part destroyed, 2 dropped) 7488 | -7/Waste | Spotted C-40 Crusher 7497 | -7/Waste | Spotted C-40 Crusher 7498 | -7/Waste | Spotted C-40 Crusher 7503 | -7/Waste | Spotted C-40 Crusher 7520 | -7/Waste | Discovered new exit (range 15) 7536 | -7/Waste | Identified exit to Factory 7537 | -7/Waste | Entered Factory 7542 | -7/Factory | Identified exit to DSF 7678 | -7/Factory | Repaired Heavy Servo Lattice 8099 | -7/Factory | Build established: Hacker-Skirmisher 8443 | -7/Factory | Build established: Hacker-Mutant 8681 | -7/Factory | Garrison activated, responded to threat 8756 | -7/Factory | System corruption reached 10% 8826 | -7/Factory | Discovered exit to Lower Caves (range 12) 9712 | -7/Factory | Garrison activated, responded to threat 9956 | -7/Factory | Discovered exit to Factory (range 7) 10112 | -7/Factory | Repaired Shock Rifle+ 10127 | -7/Factory | Discovered exit to Factory (range 8) 10324 | -7/Factory | Core integrity fell below 50% 10879 | -7/Factory | Identified exit to Garrison 10879 | -7/Factory | Entered Garrison 10979 | -7/Garrison | Core integrity fell below 20% 11018 | -7/Garrison | Lost 12 parts (1p3n2u6w) 11082 | -7/Garrison | Garrison Relay disabled 11097 | -7/Garrison | Garrison Relay disabled 11197 | -7/Garrison | Found embedded Infiltrators 11235 | -7/Garrison | Triggered checkpoint 11242 | -7/Garrison | Triggered checkpoint 11415 | -7/Garrison | Build established: Scavenger-Skirmisher 11486 | -7/Garrison | Discovered new exit (range 10) 11497 | -7/Garrison | Identified exit to Factory 11544 | -7/Garrison | Rescued a captive Derelict 11553 | -7/Garrison | Spotted B-75 Beast 11783 | -7/Garrison | Installed Relay Interface Framework 11801 | -7/Garrison | Triggered checkpoint 11840 | -7/Garrison | Garrison Relay disabled 11873 | -7/Garrison | Discovered exit to Factory (range 13) 11894 | -7/Garrison | Entered Factory 11894 | -7/Factory | Accompanied by 2 allies 12127 | -7/Factory | Garrison activated, responded to threat 12302 | -7/Factory | Build established: Bothacker-Skirmisher 12524 | -7/Factory | Discovered exit to Factory (range 8) 12557 | -7/Factory | Entered another Factory area 12557 | -6/Factory | Accompanied by 1 ally 12557 | -6/Factory | Evolved 2 slots: Utility x2 12641 | -6/Factory | Identified exit to Garrison 12641 | -6/Factory | Entered Garrison 12641 | -6/Garrison | Accompanied by 1 ally 12714 | -6/Garrison | Expanded RIF knowledge: Patrol Navigation 12849 | -6/Garrison | Spotted B-75 Beast 12876 | -6/Garrison | Rewired B-75 Beast 12880 | -6/Garrison | Allies destroyed B-75 Beast 13059 | -6/Garrison | Triggered checkpoint 13136 | -6/Garrison | Garrison Relay disabled 13292 | -6/Garrison | Discovered new exit (range 10) 13297 | -6/Garrison | Triggered checkpoint 13314 | -6/Garrison | Identified exit to Factory 13333 | -6/Garrison | Triggered checkpoint 13441 | -6/Garrison | Lost 5 parts (1n3u1w) 13544 | -6/Garrison | Garrison Relay disabled 13561 | -6/Garrison | Triggered checkpoint 13588 | -6/Garrison | Build established: Scavenger-Mutant 13618 | -6/Garrison | Garrison Relay disabled 13687 | -6/Garrison | Garrison Relay disabled 13823 | -6/Garrison | Triggered checkpoint 13831 | -6/Garrison | Discovered exit to Factory (range 10) 13913 | -6/Garrison | Triggered checkpoint 13954 | -6/Garrison | Lost 3 parts (1n2u) 13963 | -6/Garrison | Garrison Relay disabled 14226 | -6/Garrison | Build established: Bothacker-Mutant 14307 | -6/Garrison | Triggered checkpoint 14337 | -6/Garrison | Triggered checkpoint 14385 | -6/Garrison | Lost 4 parts (1p2n1u) 14461 | -6/Garrison | Garrison Relay disabled 14556 | -6/Garrison | Discovered exit to Factory (range 14) 15033 | -6/Garrison | Garrison Relay disabled 15311 | -6/Garrison | Entered Factory 15311 | -5/Factory | Accompanied by 6 allies 15311 | -5/Factory | Evolved 2 slots: Power x1, Propulsion x1 15749 | -5/Factory | Spotted B-75 Beast 15911 | -5/Factory | First assault squad dispatched 15918 | -5/Factory | Allies destroyed B-75 Beast 15976 | -5/Factory | Lost 7 allies 16482 | -5/Factory | System corruption reached 10% 16489 | -5/Factory | Lost 6 parts (1p2n1u2w) 16549 | -5/Factory | Garrison activated, responded to threat 16758 | -5/Factory | Garrison activated, responded to threat 16861 | -5/Factory | Lost 7 parts (1p3n2u1w) 16871 | -5/Factory | Identified exit to Garrison 16871 | -5/Factory | Entered Garrison 16958 | -5/Garrison | Lost 3 parts (1n1u1w) 16958 | -5/Garrison | Spotted B-75 Beast 16972 | -5/Garrison | Core integrity fell below 50% 16999 | -5/Garrison | Triggered checkpoint 17024 | -5/Garrison | Core integrity fell below 20% 17047 | -5/Garrison | Released all parts (5) 17049 | -5/Garrison | Destroyed by G-50 Soldier with Heavy Laser Last Messages --------------- alarm sounds. 17007_ System corrupted: Adv. Plasma Cannon failed to cycle. 17012_ System Shield destroyed. 17017_ Carbon-fiber Leg+ destroyed. 17017_ Adv. Signal Interpreter destroyed. 17017_ Critical hit (Blast). 17020_ Adv. Plasma Cannon destroyed. 17023_ Tesla Rifle destroyed. 17030_ Integrated Corrupted Flexi-carbon Leg (+2). 17030_ Complication: System interference. 17030_ Core Analyzer temporarily disabled. 17031_ Acquired 1 matter. 17036_ System corrupted: Component data lost. 17047_ Released Lrg. Storage Unit. 17047_ Released Core Analyzer. 17047_ Released Adv. System Shield. 17047_ Released Flexi-carbon Leg. 17047_ Released Wave Gun. Map ----- +----------------------------------------------------+ | ???????????????????????????????????????????????? | | ???????????????????????????????????????????????? | | ???????????????????????????????????????????????? | | ???????????????????????????????????????????????? | | ???????????????????????????????????????????????? | | ???????????????????????????????????????????????? | | ???????????????????????????????????????????????? | | ???????????????????????????????????????????????? | | ???????????????????????????????????????????????? | | ???????????????????????????????????????????????? | | ??????????????????????#########????????????????? | | ?????????????????????#! #! #! #????####????????? | | ?????????????????????#! #! #! #????#""#????????? | | ??????????????????????! #! #! #????# T#????????? | | ??????????????????????# ## ## #????#^"?????????? | | ??????????????########" "" "# ###### #?????????? | | ???????????# + " % % #?????????? | | ??????????????##### """###+######## #?????????? | | ?????????????????#" "#???# #??????# #?????????? | | ?????????????????#" "#???# #????### #?????????? | | ?????????????????## #???# #????# #?????????? | | ???????????# ####" ########????# #?????????? | | ???? =! #????# #?????????? | | ???? #????#"#% #?????????? | | ???????##### #####"##### #????# # #?????????? | | ??????????????????# #???#@ #????# ####?????????? | | ??????????????????# #???# g###### ""## #???????? | | ??????????????????# ???# [!= #???????? | | ??????????????????###???# #############???????? | | ????????????????????????# ###?????????????????? | | ????????????????""""????# #?????????????????? | | ???????????????????"????# #?????????????????? | | ????????????????""""????# #?????????????????? | | ????????????????????????######?????????????????? | | ???????????????????????????????????????????????? | | ???????????????????????????????????????????????? | | ???????????????????????????????????????????????? | | ???????????????????????????????????????????????? | | ???????????????????????????????????????????????? | | ???????????????????????????????????????????????? | | ???????????????????????????????????????????????? | | ???????????????????????????????????????????????? | | ???????????????????????????????????????????????? | | ???????????????????????????????????????????????? | | ???????????????????????????????????????????????? | | ???????????????????????????????????????????????? | | ???????????????????????????????????????????????? | | ???????????????????????????????????????????????? | | ???????????????????????????????????????????????? | | ???????????????????????????????????????????????? | +----------------------------------------------------+ Best States ------------- Heat Dissipation 78 Energy Generation 46 Energy Capacity 325 Matter Stores 300 Matter Capacity 300 Sight Range 16 Robot Scan Range 15 Terrain Scan Range 14 Terrain Scan Density 85 ECM Strength 2 Armor Coverage 150 Evasion (%) 63 Targeting Accuracy 24 Target Analysis 5 Core Analysis 9 Recoil Reduction 3 Offensive Hacking 30 Defensive Hacking 24 Relay Coupler Types 4 Relay Coupler Value 137 Trap Extractor Capacity 8 Item Schematics ----------------- Shock Rifle | -8/Materials | Scanalyzed Robot Schematics ------------------ None Fabricated ------------ Nothing Repaired ---------- Med. Laser | 15% | -10/Materials Hacking Suite | 80% | -8/Materials | Corrupted Carbon-fiber Leg | 13% | -7/Factory Shock Rifle | 38% | -7/Factory Carbon-fiber Leg | 7% | -7/Factory Heavy Servo Lattice | 51% | -7/Factory Shock Rifle | 1% | -7/Factory Studied --------- Shock Rifle | -8/Materials | Hacked Arc Projector | -7/Factory | Hacked Carbon-fiber Leg | -7/Factory | Hacked Hpw. Shotgun | -7/Factory | Hacked Flak Gun | -7/Factory | Hacked Gauss Rifle | -7/Factory | Hacked Alien Tech Used ----------------- None Achievements -------------- None Challenges ------------ None Game ------ Seed ActiveMiningLog Manual? 0 Play Time 02:25:31 Cumulative 84.9 hours Start 2026.09.08 @ 08:54:32 End 2026.09.08 @ 11:22:53 Sessions 1 Manual Loads 0 Difficulty Rogue Special Mode None Game No. 106 Rogue 106 Adventurer 0 Explorer 0 Win Type - Total 0 Types 0/0/0/0/0/0/0/0/0/0 Lore% 40 Gallery% 43 Achievement% 36 Wizard Run 0 Options --------- Layout 1 ASCII 0 Keyboard 0 Movement Mouse Keybinds 0 Fullscreen 2 Font 24/Smallcaps Map View 50x35 Zoom Use 0% Tactical HUD 1 Map Filters NONE Filters NONE Steam 1 RUN: e76eed13-2e3f-4242-a0ac-b364605a46b7